bitfinex/quotes_ETHUSD_20260121
["timestamp","ask_amount","ask_price","bid_price","bid_amount"]
[1768967739368,0.002,2984.5,2984.1,14.21453428]
[1768967741713,0.002,2984.5,2984.1,14.76953428]
[1768967742366,0.002,2984.5,2984.3,0.001]
[1768967744054,0.002,2984.5,2984.3,0.556]
[1768967746777,0.002,2984.5,2984.3,1.111]
[1768967749065,13.80548365,2984.5,2984.3,1.666]
[1768967750086,13.80548365,2984.5,2984.3,14.14149064]
[1768967750087,0.002,2984.5,2984.3,14.14149064]
[1768967750790,0.002,2984.5,2984.3,1.666]
[1768967750999,12.7185908,2984.5,2984.3,1.666]
[1768967751468,12.7185908,2984.5,2984.3,2.221]
[1768967754399,13.2695908,2984.4,2984.1,2.776]
[1768967754698,14.54144988,2984.4,2984.1,2.776]
[1768967757392,14.54144988,2984.4,2984.1,3.331]
[1768967760226,14.54144988,2984.4,2984.1,3.886]
[1768967762605,14.54144988,2984.4,2984.1,4.441]
[1768967763110,12.7165908,2984.2,2984.1,3.85715036]
[1768967763304,12.7165908,2984.2,2984.1,2.68945108]
[1768967764023,13.52802653,2984.3,2984.1,2.68945108]
[1768967765102,13.52802653,2984.3,2984.1,3.24445108]
[1768967765294,1.53528856,2984.2,2984.1,3.24445108]
[1768967765897,14.25187936,2984.2,2984.1,3.24445108]
[1768967766200,1.53528856,2984.2,2984.1,3.24445108]
[1768967767609,1.53528856,2984.2,2984.1,3.79945108]
[1768967770041,1.53528856,2984.2,2984.1,4.35445108]
[1768967772758,1.53528856,2984.2,2984.1,4.90945108]
[1768967772950,0.81343573,2984.3,2984.1,4.90945108]
[1768967773146,0.002,2984.3,2984.1,4.90945108]
[1768967775165,0.002,2984.3,2984.1,5.46445108]
[1768967776248,12.52346186,2984.3,2984.1,5.46445108]
[1768967777871,12.52346186,2984.3,2984.1,6.01945108]
[1768967778778,0.002,2984.3,2984.1,6.01945108]
[1768967778947,12.52346186,2984.3,2984.1,6.01945108]
[1768967779147,14.29355992,2984.3,2984.1,6.01945108]
[1768967780593,14.29355992,2984.3,2984.1,6.57445108]
[1768967781935,12.52146186,2984.2,2983.7,2.22]
[1768967782138,12.52146186,2984.0,2983.7,2.22]
[1768967782894,12.52146186,2984.0,2983.7,2.775]
[1768967785254,12.52146186,2983.9,2983.7,2.775]
[1768967785399,12.52146186,2983.9,2983.7,3.33]
[1768967788042,12.52146186,2983.9,2983.7,3.885]
[1768967788238,0.57779586,2983.8,2983.7,3.885]
[1768967788942,13.09925772,2983.8,2983.7,3.885]
[1768967789304,13.09925772,2983.8,2983.4,0.555]
[1768967789305,12.52146186,2983.7,2983.4,0.555]
[1768967789617,12.52146186,2983.5,2983.0,0.007026]
[1768967790440,12.52146186,2983.5,2983.0,0.562026]
[1768967791622,12.52146186,2983.5,2983.0,12.39927475]
[1768967792850,12.52146186,2983.5,2983.0,12.95427475]
[1768967793619,12.52146186,2983.4,2983.0,12.95427475]
[1768967794717,13.07546186,2983.6,2983.0,12.95427475]
[1768967795420,13.07546186,2983.6,2983.0,13.50927475]
[1768967795812,13.7783824,2983.6,2983.0,13.50927475]
[1768967796013,17.13006524,2983.6,2983.0,13.50927475]
[1768967798619,17.13006524,2983.6,2983.0,14.06427475]
[1768967801263,17.13006524,2983.6,2983.2,0.001]
[1768967801562,0.002,2983.4,2983.1,11.83724875]
[1768967803852,0.002,2983.4,2983.1,12.39224875]
[1768967806541,0.002,2983.4,2983.1,12.94724875]
[1768967809771,0.002,2983.4,2983.1,13.50224875]
[1768967810568,12.2565537,2983.4,2983.1,1.665]
[1768967810743,0.002,2983.4,2983.1,1.665]
[1768967811271,0.002,2983.4,2983.1,14.11163135]
[1768967812358,0.002,2983.4,2983.1,14.66663135]
[1768967812566,0.554,2983.4,2983.2,12.44663135]
[1768967813072,0.47574182,2983.4,2983.2,12.44663135]
[1768967814285,0.47574182,2983.4,2983.2,12.44763135]
[1768967814656,0.47574182,2983.4,2983.2,13.00263135]
[1768967817374,0.47574182,2983.4,2983.2,13.55763135]
[1768967818183,0.554,2983.8,2983.3,12.44663135]
[1768967819994,0.554,2983.8,2983.3,13.00163135]
[1768967820157,0.002,2984.1,2983.4,12.44663135]
[1768967820358,0.002,2984.1,2983.6,12.44663135]
[1768967820558,0.002,2984.1,2983.5,1.30016314]
[1768967820559,12.2545537,2984.0,2983.4,12.44663135]
[1768967820781,12.2545537,2983.7,2983.3,0.555]
[1768967821263,0.554,2984.0,2983.3,0.555]
[1768967821264,12.2545537,2983.9,2983.3,13.00163135]
[1768967821462,0.04189288,2983.8,2983.3,13.00163135]
[1768967821659,12.2545537,2983.6,2983.3,0.555]
[1768967821891,12.2545537,2983.4,2983.1,1.78913865]
[1768967822466,12.2545537,2983.4,2983.1,2.34413865]
[1768967822892,12.2545537,2983.4,2982.8,13.00163135]
[1768967822893,0.0418999,2983.3,2982.8,13.00163135]
[1768967823094,12.2545537,2983.4,2982.8,13.00163135]
[1768967823396,14.02164192,2983.4,2982.8,13.00163135]
[1768967824110,0.554,2983.4,2982.8,13.00163135]
[1768967824996,0.554,2983.4,2982.8,13.55663135]
[1768967826612,0.554,2983.4,2983.0,0.001]
[1768967826813,0.554,2983.4,2983.1,12.44663135]
[1768967827474,0.0418971,2983.5,2983.1,13.00163135]
[1768967827674,2.16070188,2983.5,2983.1,13.00163135]
[1768967827870,12.2545537,2983.4,2983.1,0.555]
[1768967828074,12.2964536,2983.3,2983.1,0.555]
[1768967828275,12.2545537,2983.3,2983.1,0.555]
[1768967828581,12.2545537,2983.6,2983.1,13.00163135]
[1768967828775,2.11460977,2983.5,2983.1,13.00163135]
[1768967828992,14.36916347,2983.5,2983.1,13.00163135]
[1768967829197,12.2545537,2983.6,2983.1,13.00163135]
[1768967829395,0.554,2983.5,2983.1,13.00163135]
[1768967829601,0.002,2984.1,2983.2,12.44663135]
[1768967829602,12.2545537,2984.0,2983.2,12.44663135]
[1768967829812,0.554,2983.9,2983.2,12.44663135]
[1768967829995,0.554,2983.9,2983.2,13.00163135]
[1768967830314,0.554,2983.9,2983.2,14.35739449]
[1768967830917,12.2545537,2984.0,2983.2,14.35739449]
[1768967831281,12.8085537,2984.0,2983.2,14.35739449]
[1768967831782,12.2545537,2984.0,2983.2,14.35739449]
[1768967832006,12.8085537,2984.0,2983.2,14.35739449]
[1768967832214,12.2545537,2983.8,2983.2,0.555]
[1768967832379,1.18627198,2984.0,2983.3,12.44663135]
[1768967832585,1.74027198,2984.0,2983.3,12.44663135]
[1768967832816,12.8085537,2984.0,2983.3,12.44663135]
[1768967833113,12.2545537,2983.9,2983.3,12.44663135]
[1768967833443,12.2545537,2983.7,2983.2,1.11]
[1768967833585,3.90525288,2984.0,2983.2,1.11]
[1768967833586,12.2545537,2983.5,2983.2,1.11]
[1768967834782,12.2545537,2983.5,2983.2,1.665]
[1768967835199,0.554,2983.6,2983.2,1.665]
[1768967835404,0.554,2983.6,2983.2,14.20492488]
[1768967836311,12.35366985,2983.6,2983.2,14.20492488]
[1768967837020,0.002,2984.1,2983.2,14.20492488]
[1768967837207,0.554,2983.8,2983.3,12.53992488]
[1768967838117,0.002,2983.4,2983.3,12.53992488]
[1768967839520,0.002,2983.4,2983.3,13.09492488]
[1768967839818,0.002,2984.1,2983.4,12.53992488]
[1768967841122,0.002,2984.5,2983.7,12.53992488]
[1768967841423,0.002,2984.5,2983.9,12.53992488]
[1768967842128,0.002,2984.5,2983.9,13.09492488]
[1768967844713,0.002,2984.5,2983.9,13.64992488]
[1768967846995,0.002,2984.5,2983.9,14.20492488]
[1768967848625,0.002,2984.5,2984.1,12.53992488]
[1768967849930,0.002,2984.5,2984.1,13.09492488]
[1768967850128,0.002,2984.3,2984.1,13.09492488]
[1768967850330,0.002,2984.3,2984.1,14.57091737]
[1768967852504,0.002,2984.3,2984.1,15.12591737]
[1768967852703,0.002,2984.3,2984.1,1.11]
[1768967853517,11.80166985,2984.3,2984.1,1.11]
[1768967855045,11.80166985,2984.3,2984.1,1.665]
[1768967855248,11.80166985,2984.3,2984.1,1.57936045]
[1768967855410,12.97983684,2984.2,2984.1,1.57936045]
[1768967855939,12.97983684,2984.2,2984.1,1e-08]
[1768967856548,12.97983684,2984.2,2983.9,1.665]
[1768967857642,12.97983684,2984.2,2983.9,2.22]
[1768967860136,12.97983684,2984.2,2983.9,2.775]
[1768967860340,11.79966985,2984.0,2983.9,2.775]
[1768967863121,1.85418368,2984.1,2983.9,3.33]
[1768967863307,12.35566985,2984.1,2983.9,3.33]
[1768967864311,12.35566985,2984.1,2983.5,0.001]
[1768967864506,11.79966985,2984.0,2983.5,0.001]
[1768967865249,11.74295207,2983.9,2983.5,0.001]
[1768967865417,12.4783971,2983.7,2983.5,0.556]
[1768967867256,13.0323971,2983.7,2983.5,0.556]
[1768967867611,13.0323971,2983.7,2983.5,0.55135958]
[1768967867856,13.0323971,2983.7,2983.5,0.52481069]
[1768967868013,13.0323971,2983.7,2983.5,0.20747297]
[1768967868219,13.93257902,2983.6,2983.3,0.555]
[1768967870438,12.4783971,2983.6,2983.3,1.11]
[1768967871039,12.4783971,2983.6,2983.0,0.001]
[1768967871040,12.4783971,2983.5,2983.0,0.001]
[1768967871215,12.4783971,2983.5,2982.8,1.11]
[1768967872015,12.4783971,2983.3,2982.8,1.11]
[1768967872239,12.4783971,2983.1,2982.8,1.11]
[1768967872854,12.4783971,2983.1,2982.8,1.665]
[1768967873859,12.4783971,2983.1,2982.6,12.82128001]
[1768967874157,13.0323971,2983.2,2983.0,0.001]
[1768967874344,13.0323971,2983.2,2982.7,12.26628001]
[1768967875259,12.4783971,2983.4,2982.7,12.26628001]
[1768967875461,12.4783971,2983.6,2982.7,14.10350801]
[1768967875667,0.554,2983.4,2982.7,14.10350801]
[1768967876341,0.554,2983.4,2982.8,0.0332254]
[1768967876541,0.554,2983.4,2982.9,12.26628001]
[1768967877263,15.83008023,2983.6,2982.9,12.26628001]
[1768967877563,0.554,2983.4,2982.9,12.26628001]
[1768967877763,13.0323971,2983.4,2982.9,12.82128001]
[1768967878063,13.0323971,2983.4,2982.9,0.555]
[1768967878263,0.0418999,2983.3,2982.9,0.555]
[1768967878558,0.554,2983.4,2982.9,0.555]
[1768967878559,12.4783971,2983.2,2982.9,0.555]
[1768967880153,12.4783971,2983.2,2982.9,1.11]
[1768967880943,4.99054548,2983.2,2982.9,1.11]
[1768967881150,12.4783971,2983.1,2982.7,0.555]
[1768967881337,12.37818669,2982.9,2982.7,0.555]
[1768967882569,0.06399638,2982.6,2982.5,0.001]
[1768967883840,12.99618307,2982.6,2982.3,1.11]
[1768967884036,14.24040138,2982.6,2982.3,1.11]
[1768967885070,0.61799638,2982.6,2982.3,13.93128001]
[1768967885474,12.99618307,2982.6,2982.3,1.665]
[1768967885874,12.99618307,2982.6,2982.5,0.001]
[1768967886172,12.99618307,2982.6,2982.3,1.665]
[1768967887552,12.99618307,2982.6,2982.3,2.22]
[1768967888268,12.93218669,2982.6,2982.3,2.22]
[1768967889247,5.53526469,2982.6,2982.3,2.22]
[1768967889446,12.37818669,2982.4,2982.2,1.11]
[1768967889646,12.37818669,2982.4,2982.2,0.62486173]
[1768967889873,12.37818669,2982.4,2982.2,1.04987687]
[1768967890076,12.37818669,2982.4,2981.9,1e-08]
[1768967890276,12.37818669,2982.2,2981.9,1e-08]
[1768967890548,12.93218669,2982.2,2981.9,1e-08]
[1768967891473,0.554,2982.2,2981.9,12.26628002]
[1768967892253,0.554,2982.2,2981.9,12.82128002]
[1768967893455,0.554,2982.4,2982.1,12.26628001]
[1768967894569,0.04190833,2982.7,2982.1,12.26628001]
[1768967894880,0.554,2982.6,2982.1,12.82128001]
[1768967895284,0.59590833,2982.7,2982.1,12.82128001]
[1768967895582,12.98562995,2982.7,2982.1,12.82128001]
[1768967895749,18.26551084,2982.7,2982.1,12.82128001]
[1768967897163,18.26551084,2982.7,2982.1,13.37628001]
[1768967897363,0.04190974,2982.6,2982.1,13.37628001]
[1768967897885,12.43163136,2982.6,2982.1,13.37628001]
[1768967898180,12.38972162,2982.6,2982.3,0.001]
[1768967898382,14.55153307,2982.6,2982.3,0.001]
[1768967898556,0.002,2982.5,2982.3,0.001]
[1768967899667,0.002,2982.5,2982.3,0.556]
[1768967900586,12.39172162,2982.5,2982.3,0.4910097]
[1768967900787,0.04191255,2982.4,2982.1,1.11]
[1768967900979,12.39172162,2982.5,2982.1,1.11]
[1768967902191,15.74463727,2982.5,2982.1,1.11]
[1768967902383,15.74463727,2982.5,2982.1,1.665]
[1768967902578,15.74263727,2982.5,2982.1,1.665]
[1768967904096,12.38972162,2982.5,2982.1,1.665]
[1768967904392,15.74255948,2982.6,2982.1,13.88948306]
[1768967904754,15.74255948,2982.6,2982.1,14.44448306]
[1768967907185,17.57937546,2982.6,2982.1,14.44448306]
[1768967907387,12.43163276,2982.5,2982.1,2.775]
[1768967907595,12.38972162,2982.5,2982.1,14.99948306]
[1768967907904,0.04191255,2982.4,2982.1,14.99948306]
[1768967908204,0.04191255,2982.4,2982.1,2.775]
[1768967908408,12.43163417,2982.4,2982.1,2.775]
[1768967908718,12.38972162,2982.4,2982.1,2.775]
[1768967908991,0.04191395,2982.3,2982.1,2.775]
[1768967909178,12.38972162,2982.2,2981.9,0.55500001]
[1768967909694,12.94372162,2982.3,2981.9,1.11000001]
[1768967911980,12.94372162,2982.3,2981.9,13.33448307]
[1768967912302,12.94372162,2982.3,2981.9,13.88948307]
[1768967914519,1.83681598,2982.6,2981.9,13.88948307]
[1768967914796,12.39172162,2982.7,2981.9,14.44448307]
[1768967915163,15.74444685,2982.7,2981.9,14.44448307]
[1768967916581,12.39172162,2982.7,2981.9,14.44448307]
[1768967916907,0.002,2982.7,2981.9,14.44448307]
[1768967917112,0.002,2982.7,2981.9,14.99948307]
[1768967917803,0.002,2982.7,2982.0,12.22448306]
[1768967919114,12.38972162,2983.3,2982.1,12.22448306]
[1768967919298,0.556,2983.4,2982.3,12.22448306]
[1768967919486,0.5978985,2983.4,2982.3,12.22448306]
[1768967919693,12.38972162,2983.3,2982.5,12.22448306]
[1768967919910,12.38972162,2983.1,2982.5,12.22448306]
[1768967920278,12.38972162,2983.3,2982.5,12.22448306]
[1768967921881,12.38972162,2983.3,2982.5,12.77948306]
[1768967923127,0.002,2982.7,2982.5,12.77948306]
[1768967923290,0.002,2982.7,2982.5,14.11283137]
[1768967924083,3.90788538,2983.4,2982.5,14.11283137]
[1768967924084,0.002,2983.4,2982.5,14.11283137]
[1768967924422,0.002,2983.4,2982.5,14.66783137]
[1768967926028,0.0438985,2983.4,2982.5,14.66783137]
[1768967926216,0.0438985,2983.4,2982.7,12.18263305]
[1768967926927,0.0438985,2983.4,2982.7,12.73763305]
[1768967927131,12.4459144,2983.4,2982.7,12.73763305]
[1768967927435,12.4040159,2983.4,2982.7,12.73763305]
[1768967930129,12.4040159,2983.4,2982.7,13.29263305]
[1768967932198,12.35959199,2983.4,2982.8,12.18263305]
[1768967932530,13.97315257,2983.3,2982.8,12.73763305]
[1768967933729,1.57113667,2983.3,2982.8,12.73763305]
[1768967934602,0.0418971,2983.5,2983.0,12.18263305]
[1768967934925,12.443913,2983.5,2983.0,12.73763305]
[1768967935127,12.4020159,2983.5,2983.0,12.73763305]
[1768967935337,17.26773912,2983.6,2983.0,12.73763305]
[1768967935506,0.0418971,2983.5,2983.0,12.73763305]
[1768967935836,0.44926677,2983.4,2983.0,12.73763305]
[1768967937235,0.44926677,2983.4,2983.0,13.29263305]
[1768967938132,0.49116527,2983.4,2983.0,13.29263305]
[1768967939719,0.49116527,2983.4,2983.0,13.84763305]
[1768967941742,12.4020159,2983.3,2983.0,1.665]
[1768967941939,12.4020159,2983.1,2982.7,1.11]
[1768967942315,12.4020159,2983.1,2982.7,0.9411715]
[1768967944647,12.4020159,2983.1,2982.7,1.4961715]
[1768967946244,12.4020159,2983.1,2982.9,0.001]
[1768967946420,1.73787302,2983.0,2982.7,1.4961715]
[1768967947346,1.73787302,2983.0,2982.7,2.0511715]
[1768967950123,1.73787302,2983.0,2982.7,2.6061715]
[1768967952852,1.73787302,2983.0,2982.7,15.34380455]
[1768967953032,12.4020159,2983.1,2982.7,15.34380455]
[1768967953633,0.554,2983.3,2982.7,15.34380455]
[1768967953833,12.4020159,2983.2,2982.7,15.34380455]
[1768967954818,12.4020159,2983.2,2982.8,12.18263305]
[1768967955958,12.40537582,2983.3,2982.8,12.73763305]
[1768967956121,1.28546426,2983.2,2982.8,12.73763305]
[1768967958057,1.28546426,2983.2,2982.9,0.001]
[1768967958432,0.002,2983.1,2982.9,0.001]
[1768967960962,0.002,2983.1,2982.9,0.556]
[1768967964371,0.002,2983.1,2982.9,1.111]
[1768967964570,1.37148401,2983.1,2982.9,1.111]
[1768967966236,1.37148401,2983.1,2982.9,13.95429554]
[1768967967365,1.37148401,2983.1,2982.9,1.666]
[1768967969959,1.37148401,2983.1,2982.9,2.221]
[1768967972361,1.37148401,2983.1,2982.9,2.776]
[1768967975574,1.37148401,2983.1,2982.9,3.331]
[1768967977976,1.37148401,2983.1,2982.9,3.886]
[1768967980650,1.37148401,2983.1,2982.9,4.441]
[1768967981676,0.002,2983.1,2982.9,4.441]
[1768967983680,0.002,2983.1,2982.9,4.996]
[1768967984297,11.85337582,2983.1,2982.9,1.63834919]
[1768967986256,11.85337582,2983.1,2982.9,2.19334919]
[1768967988590,0.002,2983.1,2982.9,2.74834919]
[1768967991058,0.002,2983.1,2982.9,3.30334919]
[1768967993278,0.002,2983.1,2982.9,3.85834919]
[1768967994385,0.002,2983.1,2982.9,15.92882115]
[1768967995907,0.002,2983.1,2983.0,12.07047196]
[1768967998581,0.002,2983.1,2983.0,12.62547196]
[1768968000388,0.002,2983.1,2982.9,0.21562484]
[1768968000389,12.21388783,2983.1,2982.9,0.21562484]
[1768968000571,13.43327661,2983.0,2982.8,0.98781419]
[1768968001098,13.43327661,2983.0,2982.8,1e-08]
[1768968001404,12.21188783,2982.9,2982.8,1e-08]
[1768968002196,12.76588783,2982.9,2982.8,1e-08]
[1768968002707,1.22138878,2983.0,2982.8,1e-08]
[1768968003006,0.554,2983.0,2982.8,1e-08]
[1768968003509,0.554,2983.0,2982.8,0.55500001]
[1768968004576,0.554,2983.0,2982.8,0.45983018]
[1768968004894,0.554,2983.0,2982.8,4e-08]
[1768968005706,3.90633037,2983.0,2982.6,12.07047196]
[1768968005890,13.82390965,2982.9,2982.5,1.11]
[1768968006096,12.25379476,2982.8,2982.5,1.11]
[1768968006395,12.21188783,2982.7,2982.1,0.556]
[1768968006602,12.21188783,2982.7,2982.1,12.62647196]
[1768968006802,13.43307661,2982.6,2982.1,12.62647196]
[1768968007186,1.22118878,2982.6,2982.1,12.62647196]
[1768968007388,12.21188783,2982.8,2982.1,12.62647196]
[1768968007587,12.76588783,2982.8,2982.1,12.62647196]
[1768968007815,15.56445035,2982.8,2982.1,12.62647196]
[1768968008115,12.76588783,2982.8,2982.1,12.62647196]
[1768968008290,12.76588783,2982.8,2982.1,13.18147196]
[1768968008495,14.87436366,2982.8,2982.1,13.18147196]
[1768968009100,2.66247583,2982.8,2982.1,13.18147196]
[1768968009294,0.04190693,2982.8,2982.1,13.18147196]
[1768968009495,0.556,2982.9,2982.3,12.07047196]
[1768968010295,0.002,2982.9,2982.3,12.07047196]
[1768968010499,0.002,2982.9,2982.5,12.07047196]
[1768968012992,0.002,2982.9,2982.5,12.62547196]
[1768968014132,13.82609911,2982.9,2982.5,0.555]
[1768968014286,12.21188783,2982.8,2982.1,1.49617149]
[1768968014484,4.86550009,2982.9,2982.1,1.49617149]
[1768968014485,12.21188783,2982.6,2982.1,1.49617149]
[1768968015098,12.21188783,2982.6,2982.1,1e-08]
[1768968015314,1.27658878,2982.5,2982.1,1e-08]
[1768968015522,16.39943881,2982.5,2982.1,0.55500001]
[1768968015681,11.76990224,2982.4,2982.1,0.55500001]
[1768968015885,11.76990224,2982.4,2982.1,0.42969325]
[1768968016085,11.76990224,2982.4,2982.1,3e-08]
[1768968016323,1.63994388,2982.3,2982.1,3e-08]
[1768968016897,1.27658878,2982.5,2982.1,12.2122395]
[1768968017212,1.83058878,2982.5,2982.1,12.2122395]
[1768968017990,1.83058878,2982.5,2982.1,12.7672395]
[1768968018592,13.60049102,2982.5,2982.3,0.001]
[1768968018901,13.60049102,2982.5,2982.1,12.7672395]
[1768968019525,1.83058878,2982.5,2982.1,12.7672395]
[1768968020618,1.83058878,2982.5,2982.1,13.3222395]
[1768968020819,11.76990224,2982.6,2982.1,13.3222395]
[1768968021119,0.002,2982.8,2982.1,13.3222395]
[1768968021420,0.002,2982.8,2982.3,12.21223947]
[1768968021833,15.12446133,2982.8,2982.3,12.21223947]
[1768968022136,1.51264613,2982.7,2982.3,12.21223947]
[1768968023212,1.51264613,2982.7,2982.3,12.76723947]
[1768968023623,13.28254837,2982.7,2982.3,12.76723947]
[1768968023996,1.51264613,2982.7,2982.3,12.76723947]
[1768968025728,1.51264613,2982.7,2982.3,13.32223947]
[1768968026828,0.002,2982.8,2982.3,13.32223947]
[1768968027431,3.35456533,2982.8,2982.3,13.32223947]
[1768968028234,3.35456533,2982.8,2982.3,13.87723947]
[1768968029238,11.76990224,2982.7,2982.3,1.665]
[1768968030038,0.002,2982.8,2982.4,12.21223947]
[1768968030638,0.002,2982.8,2982.4,12.76723947]
[1768968030942,1.57023744,2982.8,2982.4,12.76723947]
[1768968031151,0.002,2982.6,2982.4,12.76723947]
[1768968032601,0.002,2982.6,2982.2,12.76623947]
[1768968032807,11.77190224,2982.6,2982.2,0.554]
[1768968033121,11.77190224,2982.6,2982.2,1.109]
[1768968033699,11.77190224,2982.6,2982.2,0.555]
[1768968034040,12.94929246,2982.6,2982.2,0.555]
[1768968034406,11.76990224,2982.5,2982.2,0.555]
[1768968034807,11.76990224,2982.5,2982.1,1.66400003]
[1768968035531,11.76990224,2982.5,2982.1,1.66500003]
[1768968036129,11.76990224,2982.5,2982.1,1e-08]
[1768968036335,11.76990224,2982.3,2982.1,1e-08]
[1768968038003,11.76990224,2982.3,2982.1,0.55500001]
[1768968038618,11.76990224,2982.3,2982.1,0.47843178]
[1768968038824,15.12309192,2982.3,2981.9,2.77500001]
[1768968039040,11.76990224,2982.2,2981.9,2.77500001]
[1768968040542,11.76990224,2982.2,2981.9,3.33000001]
[1768968041740,13.18226719,2982.2,2981.9,3.33000001]
[1768968042716,11.76990224,2982.3,2981.9,3.33000001]
[1768968042917,11.76990224,2982.3,2981.9,3.88500001]
[1768968043147,11.76990224,2982.3,2981.9,16.09723948]
[1768968043546,13.40011505,2982.4,2981.9,16.09723948]
[1768968044049,13.40011505,2982.4,2982.1,0.001]
[1768968044238,1.34201151,2982.3,2982.1,0.001]
[1768968045170,0.002,2982.5,2982.1,12.21323947]
[1768968045316,0.002,2982.5,2982.1,12.76823947]
[1768968045851,0.002,2982.5,2982.1,13.32223947]
[1768968047661,0.002,2982.8,2982.2,12.57045011]
[1768968050644,0.002,2982.8,2982.2,13.12545011]
[1768968050974,0.002,2982.8,2982.4,12.57045011]
[1768968053132,0.002,2982.8,2982.4,13.12545011]
[1768968055849,0.002,2982.8,2982.4,13.68045011]
[1768968058241,0.002,2982.8,2982.4,14.23645011]
[1768968058656,0.002,2982.6,2982.4,14.23645011]
[1768968060657,0.002,2982.6,2982.4,14.79145011]
[1768968063180,0.002,2982.6,2982.4,15.34645011]
[1768968064285,0.002,2982.6,2982.4,2.776]
[1768968064497,0.002,2982.6,2982.4,15.34645011]
[1768968064651,0.002,2982.6,2982.4,2.776]
[1768968065046,0.002,2982.6,2982.4,15.34645011]
[1768968065654,0.002,2982.6,2982.4,15.90145011]
[1768968065849,0.002,2982.8,2982.4,3.331]
[1768968066090,0.002,2983.0,2982.7,12.57045011]
[1768968066259,0.002,2983.3,2982.8,12.57045011]
[1768968068083,0.002,2983.3,2982.8,13.12545011]
[1768968070276,0.002,2983.3,2982.9,12.57045011]
[1768968070474,0.002,2983.3,2982.8,1.11]
[1768968070674,12.040449,2983.3,2982.8,13.68045011]
[1768968070883,0.002,2983.3,2982.8,13.68045011]
[1768968072485,12.038449,2983.2,2982.8,13.68045011]
[1768968072792,13.2424939,2983.1,2982.8,1.665]
[1768968075261,13.2424939,2983.1,2982.8,2.22]
[1768968077393,12.038449,2983.1,2982.8,2.22]
[1768968077559,12.038449,2983.1,2982.8,2.775]
[1768968080164,12.038449,2983.1,2982.8,3.33]
[1768968082086,12.2373026,2983.3,2982.8,15.67806666]
[1768968082299,13.46103286,2983.3,2982.8,15.67806666]
[1768968082506,13.45700939,2983.3,2982.8,16.23306666]
[1768968082710,13.45700939,2983.3,2982.8,3.885]
[1768968084880,1.22373026,2983.3,2982.9,12.34806666]
[1768968085188,12.2353026,2983.5,2982.9,12.34806666]
[1768968087412,12.2353026,2983.5,2982.9,12.90306666]
[1768968089507,12.2772011,2983.4,2982.9,0.555]
[1768968089684,12.2353026,2983.4,2982.9,1.11]
[1768968090287,12.2353026,2983.3,2982.9,1.11]
[1768968090617,13.79401336,2983.3,2982.9,1.11]
[1768968092314,13.79401336,2983.3,2982.9,1.665]
[1768968094515,13.79401336,2983.3,2983.0,0.001]
[1768968097204,13.79401336,2983.3,2983.0,0.556]
[1768968100143,13.79401336,2983.3,2983.0,1.111]
[1768968102657,13.79401336,2983.3,2983.0,1.666]
[1768968105462,13.79401336,2983.3,2983.0,2.221]
[1768968106127,13.79401336,2983.3,2983.2,0.001]
[1768968107774,13.79401336,2983.3,2983.2,0.555]
[1768968107974,13.79401336,2983.3,2983.0,2.221]
[1768968108176,1.55871076,2983.3,2983.0,2.221]
[1768968108351,12.2991357,2983.4,2983.0,2.221]
[1768968110492,12.2991357,2983.4,2983.0,2.776]
[1768968111391,3.35369495,2983.6,2983.0,13.97548274]
[1768968111684,12.8531357,2983.5,2983.0,13.97548274]
[1768968113049,12.8531357,2983.5,2983.0,3.331]
[1768968113249,12.8531357,2983.5,2983.1,11.19948274]
[1768968113549,1.28551357,2983.4,2983.1,11.19948274]
[1768968114989,0.554,2983.5,2983.1,11.19948274]
[1768968115280,0.002,2983.6,2983.1,11.19948274]
[1768968115486,3.3553827,2983.5,2983.1,11.75448274]
[1768968117762,3.28153628,2983.5,2983.1,11.75448274]
[1768968117968,0.002,2983.7,2983.2,11.19948274]
[1768968118286,0.002,2983.7,2983.2,13.30611926]
[1768968118684,0.002,2983.3,2983.2,13.30611926]
[1768968118898,0.002,2983.7,2983.3,11.19948274]
[1768968118899,0.002,2983.5,2983.3,11.19948274]
[1768968119196,0.002,2983.9,2983.7,11.19948274]
[1768968120589,0.002,2983.9,2983.7,11.75448274]
[1768968121285,0.002,2984.2,2983.7,11.75448274]
[1768968121286,0.002,2984.2,2983.8,11.19948274]
[1768968121504,0.002,2984.5,2984.0,4.86188245]
[1768968122006,12.8531357,2985.2,2984.3,4.86188245]
[1768968122155,12.8531357,2985.2,2984.3,5.41588245]
[1768968122355,15.08241275,2985.9,2984.3,5.41588245]
[1768968122356,3.34934439,2985.7,2984.6,4.86188245]
[1768968122694,0.67189789,2985.7,2984.9,4.86188245]
[1768968122873,0.6245303,2985.9,2984.9,4.86188245]
[1768968122874,12.923666,2985.9,2984.9,4.86188245]
[1768968123386,12.923666,2985.9,2984.7,0.554]
[1768968123387,12.2991357,2985.7,2984.7,0.554]
[1768968123552,12.2991357,2985.5,2984.7,0.554]
[1768968123752,12.2991357,2985.1,2984.1,11.19948274]
[1768968123957,12.2991357,2984.9,2983.8,11.19948274]
[1768968124147,12.2991357,2984.7,2983.8,11.19948274]
[1768968124354,12.2991357,2984.5,2983.8,11.19948274]
[1768968125184,12.34102016,2984.4,2983.8,11.19948274]
[1768968125382,12.34102156,2984.3,2983.8,11.75448274]
[1768968125582,12.8531357,2984.2,2983.8,0.555]
[1768968125762,12.2991357,2984.0,2983.8,0.47515358]
[1768968125968,12.2991357,2984.0,2983.7,0.555]
[1768968127766,12.2991357,2984.0,2983.7,1.11]
[1768968130298,12.2991357,2984.0,2983.7,1.665]
[1768968133319,0.002,2984.3,2983.9,11.19948274]
[1768968133635,1.28950117,2984.8,2984.1,11.16929349]
[1768968133636,0.554,2984.6,2984.1,11.16929349]
[1768968134130,3.35041417,2984.8,2984.1,11.16929349]
[1768968134131,12.2991357,2984.8,2984.1,11.16929349]
[1768968134422,12.8531357,2984.6,2984.1,11.16929349]
[1768968134590,12.3011357,2984.5,2984.1,11.16929349]
[1768968136020,12.3011357,2984.5,2984.1,0.555]
[1768968136526,0.002,2984.5,2984.2,12.29942744]
[1768968138304,0.002,2984.5,2984.2,12.85442744]